bitfinex/quotes_ETHUSD_20251111
["timestamp","ask_amount","ask_price","bid_price","bid_amount"]
[1762865498394,0.002,3557.1,3556.9,6.26437843]
[1762865498554,0.002,3557.1,3556.9,6.76187843]
[1762865499260,0.002,3557.1,3556.9,3.95044151]
[1762865499468,0.002,3557.1,3556.9,2.36543751]
[1762865499671,0.002,3557.1,3556.9,2.432712]
[1762865499869,0.002,3557.1,3556.9,1.941712]
[1762865500889,0.9664,3557.0,3553.6,3.24034414]
[1762865501060,0.188,3557.0,3556.1,1.259712]
[1762865501258,0.002,3557.0,3556.2,0.7101199]
[1762865501470,0.002,3557.0,3556.3,0.405504]
[1762865501700,0.186,3556.9,3556.2,0.682]
[1762865502262,0.002,3557.0,3556.3,1.259712]
[1762865502495,0.002,3557.0,3555.9,0.405504]
[1762865502496,0.002,3557.0,3556.4,1.08916897]
[1762865502705,0.186,3556.9,3556.5,0.682]
[1762865502917,0.186,3556.9,3556.6,0.682]
[1762865503360,0.002,3557.0,3556.7,1.941712]
[1762865503565,0.002,3557.0,3556.8,0.682]
[1762865503803,0.002,3557.0,3556.9,3.21694092]
[1762865503987,0.002,3557.0,3556.9,5.2764828]
[1762865504302,0.002,3557.0,3556.9,5.30459716]
[1762865504704,0.002,3557.0,3556.9,5.2764828]
[1762865504908,0.002,3557.0,3556.9,5.30459716]
[1762865505068,0.002,3557.0,3556.9,5.2764828]
[1762865505264,0.002,3557.0,3556.9,5.30459716]
[1762865505706,0.002,3557.0,3556.9,5.2764828]
[1762865505907,0.002,3557.0,3556.9,6.34416018]
[1762865506201,0.002,3557.0,3556.9,2.85072326]
[1762865506362,0.002,3557.0,3556.9,1.665216]
[1762865506566,0.002,3557.0,3556.9,2.347216]
[1762865506818,0.002,3557.0,3556.9,1.259712]
[1762865506964,0.002,3557.0,3556.9,1.941712]
[1762865507609,0.002,3557.0,3556.9,1.259712]
[1762865507923,0.9739,3557.0,3556.9,1.941712]
[1762865508097,0.9739,3557.0,3555.8,0.02812306]
[1762865508275,0.6618,3556.9,3555.9,0.01]
[1762865508472,4.44103891,3556.5,3555.9,0.01]
[1762865508706,4.44103891,3556.5,3555.1,2.8128298]
[1762865508707,0.186,3556.9,3556.3,2.81185141]
[1762865508921,0.186,3556.9,3556.4,1.24439208]
[1762865508922,0.4758,3556.8,3556.4,1.24439208]
[1762865509215,0.4758,3556.8,3556.4,0.682]
[1762865509993,0.4961,3556.5,3555.2,0.38567738]
[1762865510181,0.4961,3556.5,3554.3,0.6618]
[1762865510379,0.4758,3556.4,3554.5,2.8133352]
[1762865510582,0.4758,3556.4,3554.7,1.259712]
[1762865510805,0.4758,3556.6,3555.5,1.259712]
[1762865511015,0.4758,3556.5,3555.6,1.0892298]
[1762865511217,0.4758,3556.5,3555.6,0.682]
[1762865511391,0.4758,3556.5,3555.8,1.259712]
[1762865511740,0.186,3556.9,3556.0,3.21761474]
[1762865512040,0.186,3556.9,3555.6,3.49445811]
[1762865512041,0.186,3556.9,3556.3,3.21739724]
[1762865512320,0.4961,3556.4,3555.5,0.405504]
[1762865512479,0.4758,3556.8,3555.7,0.405504]
[1762865512681,0.4758,3556.8,3555.8,1.19797514]
[1762865512912,0.4758,3556.8,3556.0,0.405504]
[1762865513129,0.4758,3556.8,3556.1,2.81206049]
[1762865513340,0.186,3556.9,3556.4,1.259712]
[1762865513488,0.186,3556.9,3556.4,0.405504]
[1762865513685,0.186,3556.9,3556.4,3.21729202]
[1762865513922,0.186,3556.9,3556.5,0.5159004]
[1762865514093,0.186,3556.9,3556.6,0.682]
[1762865514294,0.186,3556.9,3556.6,1.941712]
[1762865514490,0.186,3556.9,3556.6,0.682]
[1762865514696,0.002,3557.0,3556.8,1.259712]
[1762865514896,0.002,3557.0,3556.9,0.1941712]
[1762865515901,0.002,3557.0,3556.7,4.07128835]
[1762865516486,0.002,3557.0,3556.8,0.02811515]
[1762865516689,0.1991,3556.9,3555.8,0.38567738]
[1762865516889,0.1991,3556.9,3555.9,0.682]
[1762865517327,0.4656,3556.8,3555.9,0.682]
[1762865517629,0.4656,3556.8,3556.0,1.60913501]
[1762865517933,0.002,3556.8,3556.0,3.16150749]
[1762865518114,0.4676,3556.8,3556.0,0.37754449]
[1762865518314,0.002,3556.8,3555.9,0.682]
[1762865519036,0.002,3556.8,3556.0,2.81213769]
[1762865519340,0.002,3556.8,3556.2,0.405504]
[1762865519490,0.002,3556.8,3556.4,1.259712]
[1762865519836,0.002,3556.8,3556.6,2.81160425]
[1762865520089,0.002,3556.8,3556.7,5.44443307]
[1762865520251,0.0012,3556.8,3556.7,5.44443307]
[1762865520447,0.0012,3556.8,3556.7,2.63283806]
[1762865520652,0.0012,3556.8,3556.7,5.44443307]
[1762865521356,0.0012,3556.8,3556.7,5.87805302]
[1762865521503,0.0012,3556.8,3556.7,5.84993707]
[1762865524238,0.002,3557.0,3556.9,4.47665292]
[1762865524549,0.002,3557.6,3557.3,3.21662479]
[1762865524740,0.002,3557.6,3557.3,5.15833679]
[1762865524940,0.4656,3559.4,3557.8,3.21622972]
[1762865525163,0.4656,3559.1,3557.8,8.91698063]
[1762865525347,0.4656,3559.1,3557.8,9.59898063]
[1762865525549,0.4656,3559.1,3557.8,11.25638768]
[1762865525767,0.4656,3559.1,3557.8,10.1579603]
[1762865525942,0.4656,3559.5,3558.8,2.80993593]
[1762865526145,0.4656,3559.5,3558.8,4.77974728]
[1762865526344,0.4756,3559.9,3558.8,5.60167866]
[1762865526544,0.01,3559.9,3558.8,2.95091323]
[1762865526743,0.01,3559.9,3558.8,2.76352005]
[1762865526744,0.4756,3559.9,3558.8,2.76352005]
[1762865526937,0.4756,3559.9,3558.8,5.18525128]
[1762865527143,0.4756,3559.9,3558.8,5.60155533]
[1762865527346,0.01,3559.9,3558.8,5.60155533]
[1762865528053,0.01,3559.9,3558.8,4.91955533]
[1762865528261,0.01,3559.9,3558.8,5.18525128]
[1762865528591,0.01,3559.9,3558.8,5.98477909]
[1762865528749,0.01,3559.9,3558.8,5.95667974]
[1762865529445,0.01,3559.9,3558.8,6.34938962]
[1762865529635,0.01,3559.9,3558.8,5.95567974]
[1762865529988,0.01,3559.9,3558.8,6.34838962]
[1762865530534,0.01,3559.9,3559.1,3.21520308]
[1762865530750,0.01,3559.9,3559.1,3.03478278]
[1762865530948,0.01,3559.9,3559.1,4.75041108]
[1762865531251,0.01,3559.9,3559.1,5.18401207]
[1762865531454,0.1925,3559.9,3559.1,5.18401207]
[1762865531786,0.1925,3559.9,3559.1,5.15491508]
[1762865531988,0.4676,3559.7,3559.1,1.259712]
[1762865532292,0.002,3559.7,3559.1,0.681]
[1762865532495,0.4676,3559.7,3559.1,1.05107997]
[1762865532796,0.9313,3559.2,3559.1,0.681]
[1762865533295,0.9313,3559.2,3558.8,0.21]
[1762865533456,0.4657,3559.2,3559.1,0.681]
[1762865533794,0.4657,3559.2,3559.1,0.68]
[1762865533955,0.4657,3559.2,3558.0,2.81055717]
[1762865534155,0.4657,3559.2,3557.8,4.05169455]
[1762865534156,0.4656,3559.1,3558.1,0.68622517]
[1762865534392,0.1825,3559.0,3558.1,0.68622517]
[1762865534597,0.1825,3559.0,3557.5,2.81096145]
[1762865534760,0.4656,3558.9,3557.6,0.681]
[1762865534962,0.4656,3558.9,3557.6,1.940712]
[1762865535278,0.4656,3558.9,3557.7,0.681]
[1762865535482,0.4656,3558.9,3557.9,0.001]
[1762865535868,0.4656,3558.9,3557.9,0.35028725]
[1762865535869,0.4637,3558.0,3557.9,0.35028725]
[1762865536081,0.4656,3558.9,3558.0,1.259712]
[1762865536285,0.4656,3558.9,3557.9,3.16088446]
[1762865536286,0.4656,3558.8,3558.1,0.681]
[1762865536898,0.4656,3558.8,3558.2,1.259712]
[1762865537108,0.4656,3558.8,3558.3,0.0281033]
[1762865537259,0.1825,3559.0,3558.5,0.405504]
[1762865537594,0.002,3559.2,3558.6,1.29343574]
[1762865537761,0.1825,3558.9,3558.8,1.259712]
[1762865538084,0.4676,3559.2,3559.0,1.259712]
[1762865538290,0.002,3559.2,3559.1,3.89620308]
[1762865538456,0.002,3559.2,3559.1,5.48952737]
[1762865538662,0.002,3559.2,3559.1,6.7635677]
[1762865539118,0.002,3559.2,3559.1,3.27286862]
[1762865539291,0.002,3559.2,3559.1,3.62025633]
[1762865539491,0.002,3559.2,3559.1,6.7635677]
[1762865539692,0.002,3559.2,3559.1,5.74895541]
[1762865539907,0.002,3559.2,3559.1,6.7635677]
[1762865540310,0.002,3559.2,3559.1,6.42995541]
[1762865540509,0.002,3559.2,3559.1,6.8003177]
[1762865541489,0.002,3559.2,3559.1,7.19609677]
[1762865541836,0.002,3559.2,3559.1,6.42995541]
[1762865542482,0.002,3559.2,3559.1,5.74895541]
[1762865542718,0.002,3559.2,3559.1,6.42895541]
[1762865543129,0.002,3559.2,3559.1,5.74895541]
[1762865543292,0.002,3559.2,3559.1,6.42895541]
[1762865543625,0.002,3559.2,3559.1,2.93925633]
[1762865543788,0.9313,3559.2,3559.1,1.939712]
[1762865543998,0.9313,3559.2,3559.1,1.259712]
[1762865544194,0.9313,3559.2,3558.3,4.44103891]
[1762865544433,0.9313,3559.2,3557.0,4.80547805]
[1762865544434,0.4637,3559.0,3558.4,0.68]
[1762865544598,0.4637,3559.0,3558.5,0.68]
[1762865544794,0.6481,3558.9,3558.5,0.68]
[1762865545223,0.1825,3558.9,3558.7,4.06966587]
[1762865545425,0.1825,3559.1,3558.8,0.683]
[1762865546134,0.002,3559.2,3559.1,4.06941108]
[1762865546296,0.002,3559.2,3559.1,10.10374365]
[1762865546497,0.002,3559.2,3559.1,10.82472695]
[1762865546498,0.0012,3559.2,3559.1,10.82472695]
[1762865547807,0.0012,3559.2,3559.1,10.48115066]
[1762865548007,0.0012,3559.2,3559.1,10.80256029]
[1762865548798,0.0012,3559.2,3559.1,2.54741267]
[1762865549101,0.9789,3559.2,3559.1,0.683]
[1762865549303,0.9789,3559.2,3558.8,4.06963366]
[1762865549504,0.1909,3558.9,3558.6,4.47525616]
[1762865549700,0.0012,3559.2,3558.6,4.47525616]
[1762865549701,0.0012,3559.2,3558.7,1.942712]
[1762865549902,0.0012,3559.2,3559.0,7.25078727]
[1762865550246,0.0012,3559.2,3559.1,1.40807873]
[1762865550806,0.0012,3559.2,3559.1,4.21777781]
[1762865551126,0.0012,3559.2,3559.1,5.9110908]
[1762865551326,0.0012,3559.2,3559.1,5.88299381]
[1762865552248,0.0012,3559.2,3559.1,3.07329473]
[1762865552746,0.0012,3559.2,3559.1,5.88299381]
[1762865553338,0.0012,3559.2,3559.1,6.24031594]
[1762865553725,0.0012,3559.2,3559.1,6.23741082]
[1762865554040,0.0012,3559.2,3559.1,5.55441082]
[1762865554244,0.0012,3559.2,3559.1,6.23641082]
[1762865554718,0.0012,3559.2,3559.1,6.21762853]
[1762865554917,0.002,3559.6,3559.5,3.21488734]
[1762865555238,0.002,3559.6,3559.5,10.77677578]
[1762865555443,0.002,3559.6,3559.5,10.74868195]
[1762865555602,0.002,3559.6,3559.5,10.78484862]
[1762865556603,0.002,3559.6,3559.5,10.41014211]
[1762865556805,0.01,3559.9,3559.8,4.47436258]
[1762865557005,0.01,3559.9,3559.8,7.33591362]
[1762865557238,0.01,3559.9,3559.8,7.30782216]
[1762865557401,0.002,3560.0,3559.9,4.45389701]
[1762865557606,0.002,3560.0,3559.9,8.59391528]
[1762865557807,0.002,3560.0,3559.9,8.95385596]
[1762865558006,0.002,3560.0,3559.9,10.69647128]
[1762865558618,0.2009,3560.9,3560.8,4.06806967]
[1762865558905,0.2009,3560.9,3560.8,4.74906967]
[1762865559348,1.1786,3560.9,3560.8,1.259712]
[1762865559544,1.1786,3560.9,3560.8,1.940712]
[1762865559750,1.1786,3560.9,3560.8,2.1347832]
[1762865559909,0.2009,3560.9,3560.8,4.94314087]
[1762865560109,0.01,3560.9,3560.8,4.94314087]
[1762865560353,0.01,3560.9,3560.8,2.1347832]
[1762865560644,1.1786,3560.9,3560.8,2.1347832]
[1762865560846,1.1786,3560.9,3560.8,1.4537832]
[1762865561147,1.1786,3560.9,3560.8,2.1357832]
[1762865561350,1.1786,3560.9,3560.8,4.94414087]
[1762865561546,1.1786,3560.9,3560.8,2.1357832]
[1762865562351,1.1786,3560.9,3560.8,1.4537832]
[1762865562549,1.1786,3560.9,3560.8,2.1347832]
[1762865563412,1.1786,3560.9,3560.8,4.94314087]
[1762865564234,1.1786,3560.9,3560.8,2.1347832]
[1762865565459,1.1786,3560.9,3560.8,4.94314087]
[1762865565744,1.1786,3560.9,3559.9,4.52513561]
[1762865565931,0.9777,3560.8,3560.0,1.939712]
[1762865566110,0.4996,3560.8,3560.2,1.259712]
[1762865566312,0.2009,3560.9,3560.0,4.06867338]
[1762865566313,0.4781,3560.1,3560.0,4.06867338]
[1762865566533,0.4781,3560.1,3560.0,2.40000567]
[1762865566734,0.9777,3560.1,3560.0,3.08000567]
[1762865566936,0.7005,3560.9,3560.0,3.10809555]
[1762865567144,0.7005,3560.9,3560.8,5.78484761]
[1762865567330,0.2009,3560.9,3560.8,6.46484761]
[1762865567531,0.679,3560.9,3560.8,2.86704374]
[1762865567850,0.679,3560.9,3560.8,10.20053702]
[1762865568051,0.01,3560.9,3560.8,7.39217935]
[1762865568212,1.1778,3560.9,3560.8,7.39217935]
[1762865568417,1.1778,3560.9,3560.8,2.86704374]
[1762865568749,1.1778,3560.9,3560.8,1.939712]
[1762865568991,1.1778,3560.9,3560.8,4.74806967]
[1762865568992,0.0092,3560.9,3560.8,4.74806967]
[1762865569493,1.1778,3560.9,3560.8,1.939712]
[1762865569717,1.1778,3560.9,3559.4,1.99414547]
[1762865569993,0.4996,3560.8,3560.0,1.259712]
[1762865570157,0.4781,3560.1,3559.9,0.001]
[1762865570355,0.4996,3560.8,3559.9,2.81006767]
[1762865570578,0.4996,3560.7,3560.3,1.259712]
[1762865570780,0.4996,3560.7,3560.4,0.68]
[1762865570994,0.4781,3560.4,3560.0,1.01444258]
[1762865571304,0.4781,3560.1,3559.9,0.001]
[1762865571500,0.4781,3560.0,3559.9,0.001]
[1762865571700,0.4781,3560.0,3559.9,0.681]
[1762865572004,0.9777,3560.0,3559.9,0.681]
[1762865573879,0.9777,3560.0,3559.9,3.49006767]
[1762865574085,0.4996,3560.5,3560.0,1.259712]
[1762865574319,0.4996,3560.8,3560.4,1.259712]
[1762865574525,0.4996,3560.8,3560.5,0.68]
[1762865574722,0.2021,3560.9,3560.8,1.259712]
[1762865574919,0.6802,3560.9,3560.8,1.939712]
[1762865575217,0.2021,3560.9,3560.8,5.39455443]
[1762865575421,1.1361,3560.9,3560.8,2.58619676]
[1762865576119,0.6802,3560.9,3560.8,5.39455443]
[1762865576324,0.0112,3560.9,3560.8,2.58619676]
[1762865576506,1.1297,3560.9,3560.8,2.58619676]
[1762865576708,0.6662,3560.9,3560.8,5.39455443]
[1762865576908,0.0112,3560.9,3560.8,5.80005843]
[1762865577708,0.6662,3560.9,3560.8,5.39455443]
[1762865577911,0.2032,3560.9,3560.8,5.39455443]
[1762865578388,0.0112,3560.9,3560.8,5.39455443]
[1762865579290,0.0112,3560.9,3560.8,5.80005843]
[1762865581417,0.2032,3560.9,3560.8,1.90619676]
[1762865581604,0.2032,3560.9,3560.8,5.39455443]
[1762865581786,0.2032,3560.9,3560.8,2.58619676]
[1762865581986,0.0112,3560.9,3560.8,2.58619676]
[1762865582204,0.0112,3560.9,3560.8,5.39455443]
[1762865582727,0.0112,3560.9,3560.8,5.80005843]
[1762865585298,0.002,3561.1,3561.0,4.47341594]
[1762865585498,0.002,3561.1,3561.0,5.54321661]
[1762865585724,0.9285,3561.1,3561.0,6.22221661]
[1762865586222,0.9285,3561.1,3561.0,5.54321661]
[1762865586223,0.002,3561.1,3561.0,5.54321661]
[1762865586424,0.002,3561.1,3561.0,6.22221661]
[1762865587873,0.002,3561.1,3561.0,6.62772061]
[1762865589470,0.002,3561.3,3561.2,8.59288984]
[1762865589675,0.002,3561.3,3561.2,10.71243694]
[1762865590569,0.002,3561.3,3561.2,10.35249626]
[1762865591274,0.002,3561.3,3561.2,11.03049626]
[1762865593437,0.002,3561.3,3561.2,3.01931842]
[1762865593639,0.002,3561.3,3561.2,9.26988984]
[1762865593939,0.002,3561.3,3561.2,8.99839384]
[1762865594141,0.9285,3561.3,3561.2,1.259712]
[1762865594336,0.9285,3561.3,3561.2,0.678]
[1762865594678,0.0012,3561.3,3561.2,9.70447426]
[1762865594860,0.0012,3561.3,3561.2,10.9636483]
[1762865599301,0.0012,3561.3,3561.2,11.28325365]
[1762865601173,0.0012,3561.3,3561.2,6.75811804]
[1762865601377,0.0012,3561.3,3561.2,10.9636483]
[1762865602170,0.0012,3561.3,3561.2,12.9791614]
[1762865602366,0.002,3561.7,3561.6,3.21323086]
[1762865602595,0.01,3561.9,3561.8,4.4727852]
[1762865602901,0.01,3561.9,3561.8,7.16196683]
[1762865603081,0.665,3561.9,3561.8,5.1487852]
[1762865603261,0.01,3561.9,3561.8,6.48596683]
[1762865603465,0.01,3561.9,3561.8,5.1487852]
[1762865603710,0.01,3561.9,3561.8,6.67107719]
[1762865604280,0.01,3561.9,3561.8,8.68425882]
[1762865604480,0.9365,3561.9,3561.8,6.67107719]
[1762865605023,0.9365,3561.9,3561.8,1.52229199]
[1762865605173,0.9365,3561.9,3561.8,1.935712]
[1762865605373,0.9385,3561.9,3561.8,3.4835692]
[1762865605705,0.9385,3561.9,3561.8,0.676]
[1762865606106,0.9385,3561.9,3561.6,4.796454]
[1762865606306,0.4664,3561.8,3561.7,0.676]
[1762865606510,0.9566,3561.8,3561.7,2.00306271]
[1762865606731,0.9566,3561.8,3561.7,6.07037759]
[1762865609243,1.1647,3561.9,3561.8,11.62101924]
[1762865609401,0.6983,3561.9,3561.8,11.62101924]
[1762865609602,0.012,3561.9,3561.8,11.62101924]
[1762865610258,1.1647,3561.9,3561.8,6.41988363]
[1762865610537,0.012,3561.9,3561.8,6.69037963]
[1762865611000,0.012,3561.9,3561.8,6.01437963]
[1762865611196,0.012,3561.9,3561.8,7.09588363]
[1762865614036,0.6983,3561.9,3561.8,7.09588363]
[1762865614218,0.6983,3561.9,3561.8,6.69037963]
[1762865614619,1.1647,3561.9,3561.8,6.69037963]
[1762865614846,1.1647,3561.9,3561.8,6.01437963]
[1762865615015,1.1647,3561.9,3561.8,6.69037963]
[1762865615211,0.012,3561.9,3561.8,7.09588363]
[1762865615415,0.6983,3561.9,3561.8,7.09588363]
[1762865616135,1.1639,3561.9,3561.8,6.41988363]
[1762865616336,0.2073,3561.9,3561.8,7.09588363]
[1762865616836,0.6975,3561.9,3561.8,7.09588363]
[1762865617050,1.1639,3561.9,3561.8,7.09588363]
[1762865617404,1.1639,3561.9,3561.8,12.72988363]
[1762865617610,1.1639,3561.9,3561.8,13.00037963]
[1762865617946,1.1639,3561.9,3561.8,12.32437963]
[1762865618136,1.1639,3561.9,3561.8,13.00037963]
[1762865619051,1.1639,3561.9,3561.6,0.001]
[1762865619274,0.2073,3561.9,3561.7,1.259712]
[1762865619571,0.4902,3561.8,3561.7,1.935712]
[1762865619872,0.9566,3561.8,3561.7,4.74336003]
[1762865620866,0.9566,3561.8,3561.7,4.06736003]
[1762865621062,0.9566,3561.8,3561.7,1.935712]
[1762865621868,0.9566,3561.8,3561.7,1.259712]
[1762865622173,0.9566,3561.8,3561.7,4.74336003]
[1762865622464,0.9566,3561.8,3561.7,1.935712]
[1762865623174,0.9566,3561.8,3561.7,0.676]
[1762865625494,0.9566,3561.8,3561.7,0.70407648]
[1762865625659,0.9566,3561.8,3561.7,0.676]
[1762865626739,0.9566,3561.8,3561.6,0.001]
[1762865626924,0.4902,3561.7,3561.6,0.001]
[1762865627121,0.4902,3561.7,3561.6,0.677]
[1762865627361,0.9566,3561.7,3561.6,0.677]
[1762865629286,0.9566,3561.7,3561.6,0.001]
[1762865629462,0.9566,3561.7,3561.6,0.677]
[1762865630462,0.9566,3561.7,3561.6,0.001]
[1762865630663,0.9566,3561.7,3561.6,0.677]
[1762865632388,0.9566,3561.7,3561.6,0.001]
[1762865632590,0.9566,3561.7,3561.6,0.677]
[1762865634697,0.9566,3561.7,3561.6,0.001]
[1762865634910,0.9566,3561.7,3561.6,0.677]
[1762865635455,0.9566,3561.7,3561.6,0.001]
[1762865635655,0.9566,3561.7,3561.6,0.676]
[1762865636898,0.9566,3561.7,3561.6,0.001]
[1762865638761,1.35374109,3561.7,3561.6,0.001]
[1762865640174,0.9558,3561.7,3561.6,0.001]
[1762865641598,0.9558,3561.7,3561.3,0.001]
[1762865641902,0.4686,3561.4,3561.2,0.001]
[1762865642114,0.45,3561.6,3561.2,0.001]
[1762865642115,0.4686,3561.3,3561.2,0.001]
[1762865642275,0.2073,3561.9,3561.2,0.001]
[1762865642276,0.0112,3561.9,3561.8,4.0672812]
[1762865642623,0.0112,3561.9,3561.8,7.55656521]
[1762865642908,0.0112,3561.9,3561.8,6.76466265]
[1762865643107,1.1288,3561.9,3561.8,1.66644012]
[1762865643323,0.0112,3561.9,3561.8,1.934712]
[1762865643467,0.4798,3561.9,3561.8,1.934712]
[1762865643664,0.0112,3561.9,3561.8,1.934712]
[1762865644398,0.9298,3561.9,3561.8,1.259712]
[1762865644599,0.9298,3561.9,3561.2,0.001]
[1762865644804,0.9298,3561.9,3561.2,1.260712]
[1762865644805,0.4686,3561.3,3561.2,1.260712]
[1762865645034,0.4686,3561.3,3561.2,2.08573475]
[1762865645250,0.9186,3561.3,3561.2,0.82602275]
[1762865645400,0.9186,3561.3,3561.2,0.676]
[1762865645600,0.4686,3561.3,3561.2,0.676]
[1762865647524,0.45,3561.6,3561.3,1.259712]
[1762865647729,0.45,3561.6,3561.2,0.676]
[1762865649764,0.0112,3561.9,3561.2,0.676]
[1762865649930,0.0112,3561.9,3561.4,1.259712]
[1762865650128,0.0112,3561.9,3561.3,0.3484114]
[1762865650371,0.0112,3561.9,3561.4,2.8078521]
[1762865650723,0.0112,3561.9,3561.5,2.80780109]
[1762865650962,0.45,3561.8,3561.3,1.6081234]
[1762865651262,0.45,3561.8,3561.4,0.79670579]
[1762865651461,0.45,3561.8,3561.4,2.05641779]
[1762865651660,0.45,3561.8,3561.5,0.675]
[1762865652048,0.4686,3561.6,3561.5,0.675]
[1762865652623,0.9186,3561.6,3561.5,0.675]
[1762865652842,0.9186,3561.6,3561.3,1.259712]
[1762865653061,0.9186,3561.6,3561.4,0.675]
[1762865653445,0.4686,3561.5,3561.4,0.675]
[1762865654144,0.0112,3561.9,3561.5,1.259712]
[1762865654340,0.4612,3561.9,3561.5,1.259712]
[1762865654528,0.4686,3561.6,3561.4,0.675]
[1762865654729,0.4686,3561.6,3561.5,1.49397065]
[1762865654970,0.45,3561.6,3561.5,0.90925865]
[1762865655180,0.9186,3561.6,3561.5,0.675]
[1762865655331,0.4686,3561.6,3561.5,0.675]
[1762865655742,0.9186,3561.6,3561.5,0.675]
[1762865656250,0.4686,3561.6,3561.5,0.675]
[1762865656789,0.0112,3561.9,3561.5,0.675]
[1762865656954,0.4686,3561.6,3561.3,0.001]
[1762865657149,0.45,3561.8,3561.3,0.001]
[1762865657150,0.4686,3561.4,3561.3,0.001]
[1762865657362,0.4686,3561.4,3561.3,0.676]
[1762865657584,0.9186,3561.4,3561.3,0.676]
[1762865658148,0.4686,3561.4,3561.3,0.676]
[1762865658985,0.9186,3561.4,3561.3,0.001]
[1762865659181,0.9186,3561.4,3561.3,0.676]
[1762865660975,0.9186,3561.4,3561.3,0.001]
[1762865661278,0.9186,3561.4,3561.3,0.676]
[1762865662175,0.9186,3561.4,3561.3,0.001]
[1762865662356,0.9186,3561.4,3561.3,0.676]
[1762865663188,1.18140932,3561.4,3561.3,0.001]
[1762865663388,1.18140932,3561.4,3559.0,2.01318163]
[1762865663389,0.4686,3560.0,3559.0,2.01318163]
[1762865663686,0.6676,3559.6,3558.4,7.48756226]
[1762865663883,0.6676,3559.6,3559.1,0.686]
[1762865664108,1.1176,3559.6,3559.1,0.686]
[1762865665618,1.1176,3559.6,3559.2,0.0280962]
[1762865665988,0.199,3559.6,3559.1,0.686]
[1762865666295,0.199,3559.6,3559.2,2.80957691]
[1762865666608,0.642,3559.9,3559.3,1.259712]
[1762865666826,0.455,3560.3,3559.6,0.675]
[1762865666990,0.187,3559.9,3559.7,0.675]
[1762865667396,0.642,3559.9,3559.7,0.675]
[1762865667871,0.187,3559.9,3559.7,0.675]
[1762865668076,0.455,3560.3,3559.7,1.14951558]
[1762865668271,0.455,3560.3,3559.7,0.675]
[1762865669218,0.4829,3559.8,3559.5,0.001]
[1762865669417,0.4829,3559.8,3559.6,0.675]
[1762865669642,1.1249,3559.7,3559.5,0.001]
[1762865669782,0.4829,3559.6,3559.5,0.001]
[1762865670112,0.9379,3559.6,3559.5,0.001]
[1762865670794,0.4829,3559.6,3559.5,0.001]
[1762865671729,0.199,3560.6,3559.5,0.001]
[1762865672038,0.455,3560.2,3559.5,0.001]
[1762865672838,0.642,3560.8,3559.5,0.39606689]
[1762865673026,0.642,3560.8,3560.3,2.80869968]
[1762865673224,0.187,3560.8,3560.4,0.675]
[1762865673412,0.199,3561.0,3560.5,2.80859025]
[1762865673614,0.455,3561.2,3560.6,2.80850141]
[1762865673816,0.455,3561.2,3560.4,1.934712]
[1762865674140,0.455,3561.2,3560.7,2.8084317]
[1762865674908,0.455,3561.2,3560.5,3.28293296]
[1762865675129,0.455,3561.2,3560.5,0.47434498]
[1762865675309,0.455,3561.2,3560.6,0.675]
[1762865675523,0.455,3561.2,3560.7,0.675]
[1762865675736,0.6699,3560.8,3560.7,0.675]
[1762865676211,1.1249,3560.8,3560.7,0.675]
[1762865676930,0.6699,3560.8,3560.7,0.675]
[1762865677347,0.187,3560.8,3560.7,0.675]
[1762865677747,0.6699,3560.8,3560.7,0.675]
[1762865677943,0.187,3561.3,3560.7,0.675]
[1762865678156,0.455,3561.2,3560.7,0.675]
[1762865679022,0.455,3561.2,3560.3,1.259712]
[1762865679217,0.455,3561.2,3560.5,2.80856626]
[1762865679654,0.455,3561.2,3560.6,2.80844151]
[1762865680044,0.455,3561.2,3560.7,2.8084139]
[1762865680229,0.187,3561.3,3560.7,2.80835917]
[1762865680437,0.187,3561.3,3560.7,1.259712]
[1762865680948,0.642,3561.3,3560.5,1.259712]
[1762865681118,0.642,3561.3,3560.6,0.675]
[1762865681328,0.455,3561.2,3560.5,1.259712]
[1762865681539,0.455,3561.2,3560.6,0.46469199]
[1762865681754,0.455,3561.2,3560.7,0.675]
[1762865682159,0.6699,3560.8,3560.7,0.675]
[1762865682366,0.6699,3560.8,3560.2,1.259712]
[1762865682542,0.455,3560.7,3560.3,0.675]
[1762865682741,0.455,3560.7,3559.8,1.259712]
[1762865682945,0.187,3560.8,3560.1,1.259712]
[1762865683147,0.187,3560.8,3560.1,4.06856974]
[1762865683731,0.187,3560.8,3559.9,0.86760669]
[1762865684040,0.642,3560.8,3559.9,0.86760669]
[1762865684244,0.642,3560.8,3560.2,1.259712]
[1762865684432,0.642,3560.8,3560.3,0.674]
[1762865684867,0.455,3560.7,3560.3,0.674]
[1762865685450,0.4829,3560.4,3560.3,0.674]
[1762865686574,0.9379,3560.4,3560.3,0.674]
[1762865686948,0.9379,3560.4,3560.0,1.259712]
[1762865687292,0.4829,3560.0,3559.6,0.674]
[1762865687468,0.6699,3559.7,3559.2,2.80961165]
[1762865687645,0.4829,3559.6,3559.0,2.80971889]
[1762865687846,0.4829,3559.6,3559.5,0.675]
[1762865688348,0.4821,3559.6,3559.5,0.001]
[1762865688548,0.9371,3559.6,3559.5,0.001]
[1762865689349,0.187,3559.7,3559.5,0.001]
[1762865689551,0.187,3560.8,3559.5,0.001]
[1762865689552,0.642,3560.8,3559.5,0.001]